bitfinex-derivatives/quotes_SOLF0:USTF0_20240923
["timestamp","ask_amount","ask_price","bid_price","bid_amount"]
[1727115305671,13.0876,143.77,143.75,3.4779]
[1727115306167,2.7746,143.78,143.76,3.4778]
[1727115306369,12.3846,143.78,143.73,9.61]
[1727115306764,12.3846,143.78,143.77,3.4776]
[1727115307068,2.7746,143.78,143.77,3.4776]
[1727115307269,3.477,143.8,143.77,3.4776]
[1727115307467,9.61,143.78,143.77,3.4776]
[1727115308777,3.477,143.8,143.77,3.4776]
[1727115309075,9.61,143.79,143.77,3.4776]
[1727115309781,13.0871,143.79,143.77,3.4776]
[1727115310479,13.0871,143.79,143.73,9.61]
[1727115310480,9.61,143.78,143.76,3.4777]
[1727115311279,9.61,143.78,143.77,3.4776]
[1727115313082,9.61,143.79,143.74,9.61]
[1727115314179,9.61,143.78,143.74,9.61]
[1727115315085,9.61,143.78,143.77,3.4774]
[1727115315689,9.61,143.78,143.72,13.06872981]
[1727115316181,9.61,143.78,143.76,3.4776]
[1727115319491,9.61,143.77,143.72,3.45872981]
[1727115319701,9.61,143.77,143.71,9.61]
[1727115319887,9.61,143.77,143.72,3.47425191]
[1727115320187,9.61,143.77,143.71,9.61]
[1727115320579,9.61,143.77,143.75,3.4778]
[1727115320786,13.0876,143.77,143.75,3.4778]
[1727115320980,9.61,143.77,143.75,3.4778]
[1727115322689,9.61,143.76,143.75,3.4778]
[1727115328003,9.61,143.76,143.71,3.49582296]
[1727115328197,9.61,143.76,143.71,9.61]
[1727115328394,15.8337,143.77,143.72,13.17287006]
[1727115328595,15.8337,143.77,143.72,9.61]
[1727115329200,15.8337,143.77,143.75,3.4779]
[1727115329403,12.3561,143.77,143.75,3.4779]
[1727115330302,9.61,143.76,143.65,6.9606]
[1727115330598,2.7461,143.77,143.65,6.9606]
[1727115330599,9.61,143.73,143.69,9.61]
[1727115330803,9.61,143.73,143.69,13.03136395]
[1727115331304,9.61,143.73,143.72,3.4788]
[1727115332502,9.61,143.73,143.61,6.9628]
[1727115332702,9.61,143.68,143.61,6.9628]
[1727115332906,9.61,143.68,143.63,9.61]
[1727115333296,9.61,143.68,143.67,3.48]
[1727115335706,9.61,143.68,143.63,9.61]
[1727115337009,9.61,143.67,143.6,1.4291]
[1727115337307,9.61,143.67,143.61,9.61]
[1727115337508,9.61,143.67,143.65,3.4803]
[1727115337707,9.61,143.68,143.64,9.61]
[1727115338210,9.61,143.69,143.67,3.4797]
[1727115338615,1.4642,143.71,143.65,13.1449156]
[1727115338908,9.61,143.71,143.66,9.61]
[1727115339109,9.61,143.71,143.69,3.4793]
[1727115339906,9.61,143.71,143.7,3.4792]
[1727115340107,2.8417,143.72,143.68,9.61]
[1727115340316,1.4312,143.72,143.68,9.61]
[1727115340616,9.61,143.73,143.68,9.61]
[1727115340814,9.61,143.73,143.69,9.61]
[1727115343513,9.61,143.73,143.72,3.4788]
[1727115344909,9.61,143.73,143.71,3.4789]
[1727115345718,1.3458,143.75,143.72,9.61]
[1727115346503,111.93501601,143.76,143.74,3.4783]
[1727115347111,115.41281601,143.76,143.74,3.4783]
[1727115347315,111.93501601,143.76,143.74,3.4783]
[1727115348218,2.856,143.77,143.74,9.61]
[1727115348716,1.3892,143.85,143.78,3.4771]
[1727115348717,9.61,143.81,143.78,3.4771]
[1727115349122,9.61,143.81,143.76,9.61]
[1727115349317,9.61,143.79,143.77,3.4774]
[1727115349713,9.61,143.78,143.76,3.4777]
[1727115349908,9.61,143.77,143.76,3.4777]
[1727115350114,9.61,143.77,143.68,1.3971]
[1727115350115,9.61,143.77,143.71,9.61]
[1727115350314,9.61,143.75,143.71,9.61]
[1727115350620,9.61,143.76,143.71,9.61]
[1727115350823,9.61,143.76,143.74,3.4781]
[1727115351222,9.61,143.76,143.71,9.61]
[1727115351519,9.61,143.76,143.74,3.4781]
[1727115356416,9.61,143.76,143.71,9.61]
[1727115356621,9.61,143.76,143.75,3.478]
[1727115361117,13.0878,143.76,143.74,3.4782]
[1727115361317,9.61,143.75,143.7,9.61]
[1727115361631,2.8034,143.77,143.7,9.61]
[1727115361632,9.61,143.71,143.7,3.4791]
[1727115361930,1.3615,143.76,143.7,9.61]
[1727115362221,4.8394,143.76,143.73,3.4785]
[1727115362429,1.3615,143.76,143.72,9.61]
[1727115362923,12.4134,143.77,143.64,13.47674053]
[1727115362924,2.8034,143.77,143.74,9.61]
[1727115363923,102.30422834,143.79,143.75,9.61]
[1727115364517,111.91422834,143.79,143.75,9.61]
[1727115364727,115.39132834,143.79,143.76,3.4777]
[1727115365926,115.39132834,143.79,143.77,3.4775]
[1727115367032,109.55418472,143.95,143.71,3.50278357]
[1727115367224,17.94140065,143.91,143.81,9.61]
[1727115367528,13.69810065,143.9,143.84,9.61]
[1727115367736,9.61,143.89,143.74,83.5]
[1727115367927,9.61,143.89,143.84,9.61]
[1727115368127,13.69810065,143.89,143.85,9.61]
[1727115368425,13.69810065,143.89,143.75,1.414]
[1727115368634,13.8533,143.91,143.85,9.61]
[1727115368824,13.69810065,143.9,143.85,9.61]
[1727115369027,13.8533,143.91,143.87,9.61]
[1727115369028,17.94140065,143.91,143.87,9.61]
[1727115369434,4.2433,143.91,143.88,3.4749]
[1727115369630,17.94140065,143.91,143.82,3.47649193]
[1727115369832,27.55140065,143.91,143.75,61.95388275]
[1727115370138,31.02560065,143.91,143.86,13.0852]
[1727115370332,13.69810065,143.9,143.86,3.4752]
[1727115370835,15.01,143.89,143.8,15.01]
[1727115371330,3.475,143.88,143.84,3.4757]
[1727115371733,13.69380891,143.9,143.84,3.4757]
[1727115371933,3.4747,143.89,143.84,3.4757]
[1727115372328,13.69380891,143.9,143.83,3.476]
[1727115372736,3.4749,143.88,143.82,15.01]
[1727115373332,3.4747,143.89,143.82,18.4025591]
[1727115373528,3.4747,143.89,143.84,15.01]
[1727115374036,4.2433,143.91,143.84,15.01]
[1727115374437,3.4745,143.9,143.87,3.4749]
[1727115375335,3.4745,143.9,143.86,3.4753]
[1727115376142,3.4745,143.9,143.87,3.4749]
[1727115378945,6.276,143.91,143.86,15.01]
[1727115379135,2.8018,143.91,143.86,15.01]
[1727115379542,6.276,143.91,143.88,3.4747]
[1727115379730,6.276,143.91,143.86,15.01]
[1727115380543,6.276,143.91,143.88,3.4747]
[1727115381140,6.276,143.91,143.86,15.01]
[1727115382639,3.4746,143.9,143.86,15.01]
[1727115382843,2.8018,143.91,143.82,15.01]
[1727115383344,2.8018,143.91,143.84,15.01]
[1727115383546,3.4745,143.9,143.87,3.4751]
[1727115384348,2.8018,143.91,143.86,3.4753]
[1727115384548,15.01,143.88,143.66,6.962]
[1727115384842,15.01,143.88,143.79,15.01]
[1727115385048,3.4755,143.86,143.79,15.01]
[1727115385340,15.01,143.88,143.79,15.01]
[1727115385543,3.476,143.84,143.77,15.01]
[1727115385951,6.1908,143.85,143.82,3.4763]
[1727115386439,2.7151,143.85,143.79,15.01]
[1727115386742,2.7151,143.85,143.75,61.96418275]
[1727115386743,2.7151,143.85,143.81,15.01]
[1727115387845,2.7151,143.85,143.84,3.4759]
[1727115388238,15.01,143.89,143.81,15.01]
[1727115388550,3.475,143.88,143.81,15.01]
[1727115388848,15.01,143.89,143.81,15.01]
[1727115389843,3.4752,143.87,143.84,3.4757]
[1727115391247,2.6935,143.91,143.83,15.01]
[1727115391443,17.7035,143.91,143.81,15.01]
[1727115392148,17.7035,143.91,143.85,3.4756]
[1727115392149,3.4749,143.88,143.85,3.4756]
[1727115392745,3.4749,143.88,143.86,3.4753]
[1727115394351,3.4748,143.89,143.87,3.4751]
[1727115394551,17.7035,143.91,143.83,15.01]
[1727115394947,3.4747,143.89,143.83,15.01]
[1727115395148,2.6935,143.91,143.83,15.01]
[1727115395350,2.6935,143.91,143.84,15.01]
[1727115396247,2.6935,143.91,143.87,3.4751]
[1727115396248,3.4748,143.89,143.87,3.4751]
[1727115396448,2.6935,143.91,143.82,15.01]
[1727115396951,3.475,143.88,143.85,3.4754]
[1727115398552,3.475,143.88,143.86,3.4754]
[1727115399253,3.4747,143.89,143.86,3.4754]
[1727115400449,3.475,143.88,143.85,3.4755]
[1727115403156,3.475,143.88,143.82,15.01]
[1727115403157,3.475,143.88,143.86,3.4754]
[1727115404358,9.61,143.9,143.87,3.4751]
[1727115406760,3.4747,143.89,143.87,3.4751]
[1727115407460,3.4749,143.89,143.86,3.4753]
[1727115409356,3.4749,143.89,143.87,3.4751]
[1727115410148,3.4745,143.9,143.88,3.4749]
[1727115410655,3.4745,143.9,143.87,3.475]
[1727115410849,13.0847,143.89,143.87,3.475]
[1727115412255,13.0847,143.89,143.85,9.61]
[1727115412256,3.4749,143.88,143.86,3.4753]
[1727115412457,13.0849,143.88,143.86,3.4753]
[1727115412653,13.69127902,143.9,143.76,60.54271362]
[1727115412851,9.61,143.8,143.73,6.9568]
[1727115413058,9.61,143.8,143.7,6.2125604]
[1727115413251,9.61,143.79,143.76,3.4777]
[1727115413464,9.61,143.77,143.71,14.34871282]
[1727115413756,2.796,143.81,143.72,19.23242732]
[1727115413757,9.61,143.75,143.72,19.23242732]
[1727115413965,9.61,143.75,143.72,12.70357898]
[1727115414153,9.61,143.75,143.73,4.8837145]
[1727115414462,3.4783,143.74,143.67,18.5566034]
[1727115414664,3.4783,143.74,143.68,4.89049081]
[1727115414863,3.4783,143.74,143.7,3.4791]
[1727115415461,15.05,143.77,143.68,4.89128226]
[1727115415663,15.05,143.79,143.69,15.05]
[1727115416863,15.05,143.79,143.72,3.4786]
[1727115417065,15.05,143.79,143.69,15.05]
[1727115417255,3.4777,143.77,143.73,3.4784]
[1727115419862,3.4777,143.77,143.74,3.4783]
[1727115420465,15.05,143.77,143.68,7.82790197]
[1727115420978,15.05,143.77,143.67,22.87741028]
[1727115421162,3.4783,143.74,143.71,3.4789]
[1727115421667,3.4783,143.74,143.67,30.70645843]
[1727115421668,3.4787,143.73,143.69,3.4794]
[1727115421868,15.05,143.75,143.69,3.4794]
[1727115422055,1.343,143.74,143.69,3.4794]
[1727115422558,3.4788,143.72,143.69,3.4794]
[1727115423063,1.343,143.74,143.7,3.4792]
[1727115423569,3.4786,143.73,143.7,3.4792]
[1727115423769,1.343,143.74,143.67,14.36865516]
[1727115423972,15.05,143.72,143.62,18.51154034]
[1727115424168,3.4792,143.71,143.63,19.26739837]
[1727115424465,18.51676084,143.72,143.67,3.4798]
[1727115424768,3.4795,143.69,143.65,14.36865516]
[1727115424962,3.4795,143.69,143.66,8.37934762]
[1727115425162,3.4795,143.69,143.66,3.4801]
[1727115425768,3.4795,143.69,143.67,3.48]
[1727115426262,18.5293,143.7,143.67,3.48]
[1727115426568,18.5293,143.7,143.62,15.05]
[1727115426569,18.51676084,143.72,143.62,15.05]
[1727115426760,3.4792,143.71,143.62,15.05]
[1727115426961,3.4792,143.71,143.68,3.4795]
[1727115429071,3.4788,143.72,143.69,3.4794]
[1727115430168,3.4786,143.73,143.65,4.89794106]
[1727115430565,3.4786,143.73,143.71,3.4789]
[1727115432669,3.4788,143.72,143.7,3.4791]
[1727115433663,15.05,143.76,143.68,15.05]
[1727115434869,3.4783,143.74,143.72,3.4786]
[1727115437366,15.05,143.76,143.68,15.05]
[1727115437572,118.76780653,143.78,143.68,18.47545444]
[1727115437974,118.76780653,143.78,143.7,15.05]
[1727115438469,103.71780653,143.78,143.75,3.4779]
[1727115438876,107.19530653,143.78,143.75,3.4779]
[1727115439571,3.4776,143.77,143.75,3.4779]
[1727115439773,103.71780653,143.78,143.74,3.4782]
[1727115439975,118.76780653,143.78,143.7,15.05]
[1727115440775,3.4776,143.77,143.74,3.4781]
[1727115441371,15.05,143.76,143.68,15.05]
[1727115441679,15.05,143.76,143.66,17.8297]
[1727115441882,3.4783,143.74,143.66,17.8297]
[1727115442075,15.05,143.76,143.66,17.8297]
[1727115442578,3.4781,143.75,143.72,3.4786]
[1727115444078,15.05,143.76,143.66,17.8297]
[1727115444380,103.71780653,143.78,143.7,15.05]
[1727115444782,3.4777,143.77,143.74,3.4782]
[1727115445379,3.4778,143.76,143.74,3.4782]
[1727115445681,118.76780653,143.78,143.74,3.4782]
[1727115446076,3.4777,143.77,143.74,3.4782]
[1727115447176,3.4779,143.76,143.73,3.4784]
[1727115447376,15.05,143.76,143.66,24.7898]
[1727115447779,3.4782,143.75,143.66,24.7898]
[1727115448283,18.5279,143.76,143.68,15.05]
[1727115448680,18.5279,143.76,143.74,3.4781]
[1727115451483,3.4779,143.76,143.74,3.4781]
[1727115451877,1.351,143.77,143.75,3.4778]
[1727115452689,4.8287,143.77,143.74,3.4782]
[1727115452887,1.351,143.77,143.74,3.4782]
[1727115453289,4.8287,143.77,143.74,3.4782]
[1727115453587,102.31620653,143.78,143.76,3.4778]
[1727115453791,105.79360653,143.78,143.7,15.05]
[1727115454285,102.31620653,143.78,143.72,15.05]
[1727115454788,102.31620653,143.78,143.76,3.4776]
[1727115454981,102.31620653,143.78,143.72,15.05]
[1727115455386,102.31620653,143.78,143.77,3.4776]
[1727115455688,1.3588,143.8,143.72,15.05]
[1727115455883,18.57529292,143.82,143.79,3.4771]
[1727115456085,3.4768,143.81,143.79,3.4771]
[1727115456289,18.57529292,143.82,143.74,15.05]
[1727115456489,18.57529292,143.82,143.8,3.4767]
[1727115456790,22.05179292,143.82,143.74,15.05]
[1727115456990,22.05179292,143.82,143.79,3.4769]
[1727115457192,22.05179292,143.82,143.74,15.05]
[1727115457582,22.05179292,143.82,143.79,3.4769]
[1727115458480,18.5265,143.82,143.79,3.4769]
[1727115458686,4.82956676,143.83,143.8,3.4767]
[1727115458991,1.3638,143.83,143.75,15.05]
[1727115460091,4.84,143.83,143.8,3.4766]
[1727115460287,4.84,143.83,143.75,15.05]
[1727115460591,4.84,143.83,143.8,3.4767]
[1727115461188,3.4764,143.82,143.8,3.4767]
[1727115461594,15.05,143.81,143.73,2.9184]
[1727115462092,15.05,143.81,143.77,3.4774]
[1727115462290,3.4769,143.8,143.77,3.4774]
[1727115462686,3.4769,143.8,143.78,3.4773]
[1727115465197,15.05,143.81,143.76,3.4777]
[1727115465401,15.05,143.79,143.76,3.4777]
[1727115465901,3.4773,143.78,143.76,3.4777]
[1727115466291,15.05,143.79,143.76,3.4777]
[1727115466696,18.5272,143.79,143.76,3.4777]
[1727115467594,15.05,143.79,143.77,3.4775]
[1727115467996,15.05,143.81,143.77,3.4775]
[1727115468696,15.05,143.81,143.76,3.4777]
[1727115470901,3.4773,143.79,143.76,3.4777]
[1727115471600,3.4773,143.79,143.77,3.4776]
[1727115472394,13.0973,143.79,143.77,3.4776]
[1727115473091,13.0973,143.79,143.74,9.62]
[1727115473092,9.62,143.79,143.74,9.62]
[1727115473694,13.0971,143.79,143.77,3.4774]
[1727115474398,9.62,143.79,143.77,3.4774]
[1727115478998,9.62,143.79,143.78,3.4773]
[1727115479192,9.62,143.8,143.75,9.62]
[1727115479699,9.62,143.8,143.78,3.4772]
[1727115480202,13.0968,143.8,143.78,3.4772]
[1727115480998,3.4771,143.79,143.77,3.4774]
[1727115481202,13.0971,143.79,143.77,3.4774]
[1727115481604,9.62,143.78,143.76,3.4777]
[1727115481809,14.4813,143.78,143.76,3.4777]
[1727115482000,11.0039,143.78,143.7,4.91379348]
[1727115482199,9.62,143.71,143.7,4.91379348]
[1727115482798,9.62,143.71,143.66,9.62]
[1727115483003,9.62,143.71,143.67,6.57925093]
[1727115483203,9.62,143.71,143.69,3.4794]
[1727115483702,9.62,143.71,143.66,9.62]
[1727115484007,1.3839,143.72,143.68,9.62]
[1727115484205,1.3839,143.72,143.67,19.39125232]
[1727115484206,11.0039,143.72,143.69,4.92685494]
[1727115484412,1.3839,143.72,143.65,15.03]
[1727115484714,4.8627,143.72,143.66,19.39048636]
[1727115484911,4.8627,143.72,143.67,19.39048636]
[1727115485097,4.8627,143.72,143.68,19.39048636]
[1727115485407,4.8627,143.72,143.69,4.92664085]
[1727115485607,4.8627,143.72,143.65,15.03]
[1727115485812,4.8627,143.72,143.7,3.4792]
[1727115490813,1.3839,143.72,143.71,3.479]
[1727115491110,1.3839,143.72,143.66,14.4625021]
[1727115491311,4.8627,143.72,143.67,14.4625021]
[1727115491613,4.8627,143.72,143.68,11.5065752]
[1727115491816,4.8627,143.72,143.69,4.92603779]
[1727115492017,4.8627,143.72,143.65,15.03]
[1727115492317,4.8627,143.72,143.7,3.4792]
[1727115492616,1.3839,143.72,143.7,3.4792]
[1727115493421,4.8627,143.72,143.7,3.4792]
[1727115494514,15.03,143.74,143.67,7.8815187]
[1727115494716,15.03,143.74,143.68,11.50649621]
[1727115494914,18.53668076,143.74,143.69,4.92605953]
[1727115495214,22.01508076,143.74,143.66,15.03]
[1727115495515,22.01508076,143.74,143.67,19.38862303]
[1727115495817,22.01508076,143.74,143.68,19.38862303]
[1727115496017,22.01508076,143.74,143.69,4.92616911]
[1727115496217,22.01508076,143.74,143.66,15.03]
[1727115496425,22.01508076,143.74,143.67,19.38907598]
[1727115496623,22.01508076,143.74,143.68,19.38907598]
[1727115496821,22.01508076,143.74,143.69,4.92628433]
[1727115497022,22.01508076,143.74,143.72,3.4787]
[1727115500134,15.03,143.74,143.72,3.4787]
[1727115500736,18.5083,143.74,143.72,3.4787]
[1727115500937,16.3902,143.76,143.73,3.4785]
[1727115501335,19.8682,143.76,143.73,3.4785]
[1727115501640,23.36235204,143.76,143.73,3.4785]
[1727115501842,19.88435204,143.76,143.73,3.4785]
[1727115502636,3.4782,143.75,143.73,3.4785]
[1727115504342,9.63,143.74,143.73,3.4785]
[1727115506540,9.63,143.74,143.72,3.4787]
[1727115506844,9.63,143.73,143.72,3.4787]
[1727115515349,13.1085,143.73,143.71,3.4789]
[1727115515540,9.63,143.72,143.71,3.4789]
[1727115521052,13.1088,143.72,143.7,3.4792]
[1727115522340,13.1088,143.72,143.71,3.479]
[1727115522341,9.63,143.72,143.71,3.479]
[1727115522545,9.63,143.73,143.67,17.50461118]
[1727115522745,4.85435204,143.76,143.69,9.63]
[1727115522943,9.63,143.75,143.74,3.4783]
[1727115523147,9.63,143.75,143.69,9.63]
[1727115523545,13.1081,143.75,143.69,9.63]
[1727115524044,13.1081,143.75,143.67,10.56931118]
[1727115524045,13.1081,143.75,143.72,3.4786]
[1727115524251,9.63,143.73,143.72,3.4786]
[1727115527863,9.63,143.73,143.69,3.4793]
[1727115528160,9.63,143.7,143.69,3.4793]
[1727115530354,9.63,143.7,143.68,7.87395254]
[1727115531246,9.63,143.7,143.69,3.4795]
[1727115531448,9.63,143.7,143.69,8.3988265]
[1727115535058,9.63,143.7,143.69,3.4795]
[1727115535364,9.63,143.7,143.69,14.9745851]
[1727115535566,9.63,143.7,143.69,19.8961539]
[1727115535760,9.63,143.7,143.69,13.32178204]
[1727115536266,9.63,143.7,143.69,19.89663496]
[1727115536765,9.63,143.7,143.69,13.32178204]
[1727115540070,9.63,143.7,143.69,9.84228204]
[1727115540261,9.63,143.7,143.58,6.9642]
[1727115540458,9.63,143.64,143.62,14.45548979]
[1727115540660,9.63,143.65,143.6,9.63]
[1727115540961,9.63,143.65,143.61,6.57489961]
[1727115541259,9.63,143.65,143.64,3.4807]
[1727115541466,9.63,143.65,143.64,10.05559961]
[1727115541663,4.9486,143.69,143.64,6.57489961]
[1727115541863,9.63,143.68,143.65,6.57489961]
[1727115542063,9.63,143.68,143.66,6.57489961]
[1727115542260,9.63,143.68,143.67,6.57489961]
[1727115543162,9.63,143.68,143.67,10.05469961]
[1727115547762,9.63,143.68,143.67,10.06455764]
[1727115549273,1.4349,143.71,143.67,6.58475764]
[1727115549480,1.4349,143.71,143.7,3.4792]
[1727115549770,11.0649,143.71,143.7,3.4792]
[1727115550268,1.4349,143.71,143.7,3.4792]
[1727115550470,1.3441,143.75,143.69,9.63]
[1727115550670,9.63,143.74,143.69,9.63]
[1727115550977,13.1084,143.74,143.71,3.4789]
[1727115551370,13.1085,143.73,143.71,3.4789]
[1727115555575,9.63,143.73,143.72,3.4788]
[1727115556971,13.1085,143.73,143.71,3.4789]
[1727115558583,13.1088,143.72,143.7,3.4792]
[1727115559282,9.63,143.72,143.71,3.479]
[1727115559480,13.1086,143.73,143.71,3.479]
[1727115559979,9.63,143.73,143.69,9.63]
[1727115560175,9.63,143.73,143.7,6.58419979]
[1727115560373,9.63,143.73,143.69,9.63]
[1727115560573,9.63,143.73,143.7,11.28180383]
[1727115560872,9.63,143.73,143.69,9.63]
[1727115561072,9.63,143.73,143.71,3.4788]
[1727115562582,13.1085,143.73,143.71,3.4788]
[1727115564782,3.4788,143.72,143.7,3.4791]
[1727115565374,13.1086,143.73,143.71,3.479]
[1727115565684,13.1086,143.73,143.67,9.63]
[1727115565988,13.1086,143.73,143.7,3.4791]
[1727115566588,3.4784,143.74,143.71,3.4789]
[1727115566793,9.63,143.73,143.71,3.4789]
[1727115567783,13.1085,143.73,143.71,3.4789]
[1727115569688,9.63,143.72,143.71,3.4789]
[1727115574189,13.1088,143.72,143.7,3.4791]
[1727115574385,9.63,143.71,143.66,9.63]
[1727115574596,9.63,143.71,143.67,6.58283199]
[1727115574782,13.109,143.71,143.69,3.4794]
[1727115575091,13.109,143.71,143.7,6.58283199]
[1727115575591,13.109,143.71,143.7,11.27939115]
[1727115576588,9.63,143.71,143.64,9.63]
[1727115576785,9.63,143.69,143.64,9.63]
[1727115576982,9.63,143.69,143.66,3.4801]
[1727115576983,3.4799,143.68,143.66,3.4801]
[1727115577296,9.63,143.69,143.67,6.58341879]
[1727115577590,9.63,143.69,143.66,3.4801]
[1727115577591,13.1096,143.69,143.68,6.58341879]
[1727115577785,13.1096,143.69,143.68,11.28041154]
[1727115579083,13.1096,143.69,143.68,11.28117186]
[1727115579789,13.1096,143.69,143.68,11.28225521]
[1727115580193,13.1096,143.69,143.68,4.69699275]
[1727115580378,13.1096,143.69,143.68,6.58543377]
[1727115580781,13.1096,143.69,143.68,11.28385493]
[1727115581785,13.1096,143.69,143.68,6.58543377]
[1727115581990,13.1096,143.69,143.68,11.2839004]
[1727115583393,13.1096,143.69,143.68,4.69846663]
[1727115583684,3.4794,143.7,143.68,6.58713238]
[1727115583886,9.63,143.69,143.68,4.6996325]
[1727115584183,9.63,143.69,143.68,11.2867078]
[1727115584582,9.63,143.69,143.68,4.6996325]
[1727115584784,3.4791,143.71,143.68,11.28665203]
[1727115584984,13.1091,143.71,143.69,6.58701953]
[1727115585182,13.1091,143.71,143.68,4.6996325]
[1727115585385,1.3441,143.75,143.7,3.4792]
[1727115585386,13.1089,143.72,143.7,3.4792]
[1727115587995,9.63,143.71,143.69,3.4794]
[1727115588185,9.63,143.7,143.69,3.4794]
[1727115588384,9.63,143.7,143.69,14.76465856]
[1727115589295,13.1092,143.7,143.69,11.28525856]
[1727115589493,14.5432,143.7,143.69,11.28525856]
[1727115590299,3.4795,143.69,143.66,3.4802]
[1727115590488,9.63,143.67,143.66,3.4802]
[1727115590981,9.63,143.67,143.66,10.06759089]
[1727115591588,9.63,143.67,143.66,14.76743159]
[1727115592996,3.4795,143.69,143.67,3.4799]
[1727115593295,9.63,143.69,143.68,11.28723159]
[1727115594092,9.63,143.69,143.68,4.6998407]
[1727115594293,9.63,143.69,143.68,11.28845142]
[1727115594688,9.63,143.69,143.68,4.6998407]
[1727115594998,9.63,143.69,143.68,11.2885576]
[1727115595200,13.1095,143.69,143.68,6.5887169]
[1727115595699,13.1095,143.69,143.68,11.28946927]
[1727115596797,13.1095,143.69,143.68,6.5887169]
[1727115596997,13.1095,143.69,143.68,11.29047642]
[1727115597498,13.1095,143.69,143.68,4.70175952]
[1727115597804,13.1095,143.69,143.68,6.58891218]
[1727115597993,13.1095,143.69,143.68,11.28976497]
[1727115602606,9.63,143.69,143.6,60.61789177]
[1727115602800,9.63,143.63,143.62,3.481]
[1727115603699,9.63,143.63,143.61,3.4813]
[1727115604004,9.63,143.62,143.61,3.4813]
[1727115606003,9.63,143.62,143.6,3.4815]
[1727115606194,9.63,143.61,143.6,3.4815]
[1727115607905,13.1114,143.61,143.53,20.10795589]
[1727115608105,9.63,143.59,143.53,12.2846]
[1727115608608,9.63,143.57,143.56,3.4826]
[1727115610603,1.401,143.65,143.56,9.63]
[1727115610806,9.63,143.62,143.56,9.63]
[1727115611207,9.63,143.62,143.61,3.4814]
[1727115611601,9.63,143.62,143.56,9.63]
[1727115612206,9.63,143.61,143.6,3.4815]
[1727115613010,9.63,143.61,143.59,3.4818]
[1727115613204,9.63,143.6,143.59,3.4818]
[1727115622415,3.4811,143.63,143.55,9.63]
[1727115622617,9.63,143.59,143.55,9.63]
[1727115623014,9.63,143.59,143.58,3.4822]
[1727115624414,1.401,143.65,143.58,9.63]
[1727115624615,9.63,143.64,143.59,9.63]
[1727115624919,9.63,143.64,143.63,3.4809]
[1727115625419,9.63,143.64,143.62,3.4811]
[1727115625919,9.63,143.63,143.62,3.4811]
[1727115626317,9.63,143.63,143.53,2.9144]
[1727115626514,9.63,143.59,143.54,9.63]
[1727115627413,9.63,143.59,143.58,3.4822]
[1727115628711,9.63,143.6,143.59,3.4819]
[1727115631521,9.63,143.6,143.58,3.482]
[1727115631717,9.63,143.59,143.58,3.482]
[1727115634420,9.63,143.59,143.57,3.4823]
[1727115634619,9.63,143.58,143.57,3.4823]
[1727115636219,9.63,143.58,143.56,3.4825]
[1727115636421,9.63,143.57,143.56,3.4825]
[1727115636621,9.63,143.57,143.5,70.2870309]
[1727115636622,9.63,143.57,143.5,60.6570309]
[1727115636924,9.63,143.54,143.5,60.6570309]